Cogmind - Beta 15 @@@ ROGUE MODE // 2025.10.02 @ 13:49:20 Player: NQH Result: Destroyed by Y-45 Defender with Beam Rifle Performance ------------- Evolutions (2) 1000 Regions Visited (5) 1000 Robots Destroyed (19) 95 Value Destroyed (333) 333 Prototype IDs (2) 40 Alien Tech Used (0) 0 Bonus (200) 200 TOTAL SCORE: 2668 Bonus ------- Entered Garrisons 200 Cogmind --------- Core Integrity 0/550 Matter 153/300 Energy 100/100 System Corruption 3% Temperature Cool (9) Movement Core (50) Location -8/Garrison Parts ------- > --- POWER (2) -------- (None) > --- PROPULSION (3) --- (None) > --- UTILITY (4) ------ Advanced Weight Redist. System Signal Interpreter > --- WEAPON (2) ------- (None) > --- INVENTORY (5) ---- Improved Signal Interpreter ECM Suite Light Armor Plating EM Pulse Cannon Peak State ------------ > --- POWER ------------ Light Ion Engine > --- PROPULSION ------- Flight Unit Flight Unit Flight Unit > --- UTILITY ---------- Advanced Weight Redist. System Signal Interpreter Hardened Medium Armor Plating Drone Bay > --- WEAPON ----------- EM Pulse Cannon Improved Datajack > --- INVENTORY -------- Improved Signal Interpreter ECM Suite Light Armor Plating EM Pulse Cannon EM Pulse Cannon [Rating: 23] Favorites ----------- Power Light Ion Engine Engine Light Ion Engine Propulsion Flight Unit Treads Light Treads Wheel Wheel Flight Unit Flight Unit Utility Signal Interpreter Device Advanced Weight Redist. System Storage Small Storage Unit Processor Signal Interpreter Protection Hardened Medium Armor Plating Weapon EM Pulse Cannon Energy Gun Small Laser Energy Cannon EM Pulse Cannon Ballistic Gun Light Assault Rifle Launcher Shock Bomb Launcher Special Melee Weapon Improved Datajack Build | -11 -10 -9 -8 -8 -8 ------- Run | Yrd Mat Mat Mat Sto Gar Slots Evolved 4 | . . 2 2 . . Power 1 | . . . 1 . . Propulsion 1 | . . . 1 . . Utility 2 | . . 2 . . . Weapon . | . . . . . . Parts Attached 46 | 9 6 11 11 8 1 Power 4 | 1 1 2 . . . Engine 4 | 1 1 2 . . . Core . | . . . . . . Reactor . | . . . . . . Propulsion 9 | 4 1 3 1 . . Treads 2 | 2 . . . . . Leg . | . . . . . . Wheel 2 | 2 . . . . . Hover . | . . . . . . Flight 5 | . 1 3 1 . . Utility 20 | 1 2 4 6 7 . Device 13 | . 1 2 3 7 . Storage 2 | 1 . 1 . . . Processor 2 | . 1 . 1 . . Hackware . | . . . . . . Protection 3 | . . 1 2 . . Artifact . | . . . . . . Weapon 13 | 3 2 2 4 1 1 Energy Gun 3 | 2 . . 1 . . Energy Cannon 3 | . . . 2 . 1 Ballistic Gun 5 | 1 2 2 . . . Ballistic Cannon . | . . . . . . Launcher 1 | . . . 1 . . Special Weapon . | . . . . . . Impact Weapon . | . . . . . . Slashing Weapon . | . . . . . . Piercing Weapon . | . . . . . . Special Melee Weapon 1 | . . . . 1 . Unidentified Prototypes 2 | . . 1 1 . . Parts Lost 19 | . 3 10 . . 6 Power 3 | . 1 1 . . 1 Propulsion 8 | . 1 4 . . 3 Utility 4 | . . 3 . . 1 Weapon 4 | . 1 2 . . 1 Highest Loss Streak 6 | . 2 6 . . 4 To Critical Strikes . | . . . . . . Average Backups 4 | 1 6 5 4 5 4 Power . | . . . . . . Propulsion . | . 2 1 . . . Utility 2 | . 3 4 2 2 3 Weapon . | . . . 1 2 1 Tool/Special . | . . . . . . Unused Backups 7 | . 2 . 4 . 1 Power . | . . . . . . Propulsion 2 | . 2 . . . . Utility 5 | . . . 4 . 1 Weapon . | . . . . . . Tool/Special . | . . . . . . Average Slot Usage (%) 74 | . 87 68 77 84 56 Engine 9 | . 12 8 9 9 6 Wheel 3 | . 19 1 . . . Flight 17 | . . 8 27 27 14 Device 9 | . 8 9 8 14 11 Storage 3 | . 14 8 . . . Processor 8 | . 3 11 9 9 9 Protection 6 | . . 1 8 11 6 Energy Gun 1 | . 8 . . . . Energy Cannon 7 | . . . 13 7 1 Ballistic Gun 5 | . 19 14 . . . Special Melee Weapon 1 | . . . . 6 7 Peak Build Rating 23 | 6 7 11 21 23 20 Average Rating 12 | 4 6 6 15 20 13 On Entrance 9 | . 6 6 8 16 20 Naked Turns . | . . . . . . Heaviest Build 30 | 11 13 30 23 24 23 Greatest Support 40 | 40 26 40 21 21 21 Greatest Overweight (x) 3 | . 3 1 1 1 1 Average Overweight (x) . | . . . . . . Largest Inventory Capacity 15 | 8 8 15 5 5 5 Average Capacity 5 | 6 8 7 5 5 5 Most Carried 8 | 3 8 7 5 5 5 Average Carried 4 | 1 6 5 4 4 4 Final Capacity 8 | 8 8 5 5 5 5 Final Carried 8 | 3 8 4 5 5 4 Class Distribution -------------------- 59% | Scavenger-Mutant 40% | Mutant Dominant Class ---------------- Mutant | -10/Materials Mutant | -9/Materials Scavenger-Mutant | -8/Materials Scavenger-Mutant | -8/Storage Mutant | -8/Garrison Resources | -11 -10 -9 -8 -8 -8 ----------- Run | Yrd Mat Mat Mat Sto Gar Matter Collected 624 | 173 166 48 220 17 . Remotely . | . . . . . . Salvage Created 464 | . 175 232 57 . . Parts 35 | . 14 16 5 . . Haulers Intercepted . | . . . . . . Recyclers Shooed 1 | . 1 . . . . Parts Field Recycled . | . . . . . . Retrieved Matter . | . . . . . . Parts Self-Destructed . | . . . . . . Prevented . | . . . . . . Kills | -11 -10 -9 -8 -8 -8 ------- Run | Yrd Mat Mat Mat Sto Gar Combat Hostiles Destroyed 17 | . 7 9 1 . . Guns 16 | . 7 9 . . . Cannons 1 | . . . 1 . . Classes Destroyed 5 | . 3 1 1 . . Recycler 1 | . . 1 . . . Watcher 1 | . 1 . . . . Swarmer 12 | . 5 7 . . . Grunt 4 | . 2 2 . . . Sentry 1 | . . . 1 . . Best Kill Streak 5 | . 5 5 1 . . Combat Bots Only 5 | . 5 4 1 . . Max Kills in Single Turn 1 | . 1 1 1 . . Gunslinging . | . . . . . . Exploded . | . . . . . . Melee . | . . . . . . Uniques/NPCs Destroyed . | . . . . . . Combat | -11 -10 -9 -8 -8 -8 -------- Run | Yrd Mat Mat Mat Sto Gar Hostile Shots Fired 316 | . 63 153 19 2 79 Missed 85 | . 17 30 10 2 26 Hits 231 | . 46 123 9 . 53 Melee 2 | . . 2 . . . Projectile 229 | . 46 121 9 . 53 Critical Strikes 4 | . . . . . 4 Damage Taken 2493 | . 410 1109 156 . 818 Core 942 | . 96 291 13 . 542 Absorbed by Shields 57 | . . . . . 57 Core Remaining (%) 62 | 100 61 27 . . . Volleys Fired 72 | . 21 47 3 . 1 Largest 2 | . 2 2 2 . 2 Hottest 126 | . 60 40 126 . 126 Shots Fired 111 | . 42 63 4 . 2 Gun 105 | . 42 63 . . . Cannon 6 | . . . 4 . 2 Launcher . | . . . . . . Special . | . . . . . . Kinetic 86 | . 23 63 . . . Thermal 19 | . 19 . . . . Explosive . | . . . . . . Electromagnetic 6 | . . . 4 . 2 Robot Hit Streak 9 | . 5 6 7 . 9 Robot Miss Streak 5 | . 5 2 . . . Penetration Max . | . . . . . . Secondary Targets 6 | . 3 3 . . . Max Gunslinging Chain 1 | . 1 1 . . . Shots Hit Robots 68 | . 22 38 4 . 4 Core Hits 34 | . 11 18 2 . 3 Critical Kills . | . . . . . . Critical Parts Destroyed . | . . . . . . Critical Strikes . | . . . . . . Melee Attacks 2 | . . . . . 2 Impact . | . . . . . . Slashing . | . . . . . . Piercing . | . . . . . . Sneak Attacks 2 | . . . . . 2 Combat Hostiles 2 | . . . . . 2 Follow-up Attacks . | . . . . . . Damage Inflicted 761 | . 288 339 96 . 38 Guns 622 | . 286 336 . . . Cannons 106 | . . . 96 . 10 Explosions 28 | . . . . . 28 Melee . | . . . . . . Ramming 5 | . 2 3 . . . Kinetic 478 | . 142 336 . . . Thermal 144 | . 144 . . . . Explosive . | . . . . . . Electromagnetic 134 | . . . 96 . 38 Impact . | . . . . . . Slashing . | . . . . . . Piercing . | . . . . . . Highest Corruption 3 | . . . . . 3 Average Corruption 1 | . . . . . 1 Corruption Purged . | . . . . . . Corruption Blocked . | . . . . . . Overload Shots . | . . . . . . Overflow Damage 26 | . . . . . 26 Projectiles . | . . . . . . Explosions 26 | . . . . . 26 Melee . | . . . . . . Knockbacks . | . . . . . . Impact . | . . . . . . Kinetic . | . . . . . . Secondary . | . . . . . . Self-Inflicted Damage 31 | . 1 . . . 30 Shots 1 | . . . . . 1 Rammed 4 | . 1 3 . . . Targets Rammed 4 | . 1 3 . . . Kicked . | . . . . . . Crushed . | . . . . . . Highest Temperature 72 | . 26 7 72 . 63 Average Temperature 20 | . 12 3 28 . 37 Received Heat Transfer 312 | . 30 186 36 . 60 Siege Activations . | . . . . . . Martial Activations . | . . . . . . Shielding Activations . | . . . . . . Robots Disrupted 1 | . . . . . 1 Combat Hostiles 1 | . . . . . 1 Robots Corrupted . | . . . . . . Combat Hostiles . | . . . . . . Parts Fried . | . . . . . . Impact Corruptions . | . . . . . . Robots Melted . | . . . . . . Combat Hostiles . | . . . . . . Parts Melted . | . . . . . . Heat Transferred 325 | . 325 . . . . Parts Sabotaged . | . . . . . . Parts Stolen . | . . . . . . Parts Stripped . | . . . . . . Power Chain Reactions . | . . . . . . Alert | -11 -10 -9 -8 -8 -8 ------- Run | Yrd Mat Mat Mat Sto Gar Maximum Alert Level . | . . . . . . Low Security (%) 100 | 100 100 100 100 100 100 Level 1 . | . . . . . . Level 2 . | . . . . . . Level 3 . | . . . . . . Level 4 . | . . . . . . Level 5 . | . . . . . . High Security . | . . . . . . Max Security . | . . . . . . Peak Influence 90 | . 80 85 89 33 90 Initial 33 | . . 20 5 33 . Average 18 | . 36 49 5 13 17 Influence Increases 683 | . 178 215 150 . 140 Destroy 0b10 Robot/C 340 | . 140 180 20 . . Destroy 0b10 Robot/NC 10 | . 5 5 . . . Destroy Leader 72 | . 32 30 10 . . Trap Triggered on 0b10 20 | . . . . . 20 Disable Machine 15 | . . . . . 15 Destroy Structure 1 | . 1 . . . . Lose Combat Pursuer 225 | . . . 120 . 105 Influence Decreases 593 | . 128 250 84 81 50 Entered New Map 88 | . . 30 10 48 . Time Decay 302 | . 98 120 64 20 . Lost Part 170 | . 30 100 . . 40 Lost Ally 23 | . . . . 13 10 Purge Threat 10 | . . . 10 . . Squads Dispatched 6 | . 2 1 2 1 . Investigation . | . . . . . . Extermination . | . . . . . . Reinforcement 6 | . 2 1 2 1 . Assault . | . . . . . . Garrison . | . . . . . . Intercept . | . . . . . . Searches Triggered . | . . . . . . Construction Impeded . | . . . . . . Haulers Reinforced . | . . . . . . Active Scanning Responses . | . . . . . . Cargo Convoy Interrupts . | . . . . . . Stealth | -11 -10 -9 -8 -8 -8 --------- Run | Yrd Mat Mat Mat Sto Gar Distress Signals 5 | . 1 4 . . . Communications Jammed . | . . . . . . Distress Signals . | . . . . . . Times Spotted 66 | . 16 18 17 3 12 Peak Tracking Total 8 | . 7 6 8 3 6 Tactical Retreats 8 | . . 1 4 . 3 Traps | -11 -10 -9 -8 -8 -8 ------- Run | Yrd Mat Mat Mat Sto Gar Traps Triggered 7 | . 1 . . . 6 Indirectly . | . . . . . . Trap Hack Attempts 11 | . . . . . 11 Triggered . | . . . . . . Disarmed . | . . . . . . Reprogrammed 2 | . . . . . 2 Reused 2 | . . . . . 2 Traps Extracted . | . . . . . . Installed 2 | . . . . . 2 Triggered 2 | . . . . . 2 Machines | -11 -10 -9 -8 -8 -8 ---------- Run | Yrd Mat Mat Mat Sto Gar Machines Disabled 1 | . . . . . 1 Max in Single Turn 1 | . . . . . 1 Machines Repaired . | . . . . . . Machines Dismantled . | . . . . . . Machines Sabotaged . | . . . . . . Overloaded Fab Kills . | . . . . . . Hacking | -11 -10 -9 -8 -8 -8 --------- Run | Yrd Mat Mat Mat Sto Gar Machines Accessed 3 | . . . 1 2 . Terminals 2 | . . . 1 1 . Fabricators . | . . . . . . Repair Stations . | . . . . . . Recycling Units . | . . . . . . Scanalyzers . | . . . . . . Garrison Access 1 | . . . . 1 . Total Hacks 5 | . . . 3 2 . Successful 3 | . . . 1 2 . Failed 2 | . . . 2 . . Catastrophic 1 | . . . 1 . . Database Lockouts . | . . . . . . Manual 3 | . . . 3 . . Terminals 4 | . . . 3 1 . Fabricators . | . . . . . . Repair Stations . | . . . . . . Recycling Units . | . . . . . . Scanalyzers . | . . . . . . Garrison Access 1 | . . . . 1 . Terminal Hacks 2 | . . . 1 1 . Open Door 1 | . . . . 1 . Unreport Threat 1 | . . . 1 . . Fabricator Hacks . | . . . . . . Repair Station Hacks . | . . . . . . Recycling Unit Hacks . | . . . . . . Scanalyzer . | . . . . . . Garrison Access Hacks 1 | . . . . 1 . Unlock Access 1 | . . . . 1 . Unauthorized Hacks . | . . . . . . Terminals . | . . . . . . Fabricators . | . . . . . . Repair Stations . | . . . . . . Recycling Units . | . . . . . . Scanalyzers . | . . . . . . Garrison Access . | . . . . . . Data Cores Recovered . | . . . . . . Used . | . . . . . . Hacking Detections 1 | . . . 1 . . Full Trace Events 1 | . . . 1 . . Feedback Events . | . . . . . . Feedback Blocked . | . . . . . . Robot Schematics Acquired . | . . . . . . Robots Built . | . . . . . . Authchips . | . . . . . . Time . | . . . . . . Total Robot Build Rating . | . . . . . . Part Schematics Acquired . | . . . . . . Parts Built . | . . . . . . Authchips . | . . . . . . Time . | . . . . . . Total Part Build Rating . | . . . . . . Parts Repaired . | . . . . . . Time . | . . . . . . Parts Recycled . | . . . . . . Recycled Matter . | . . . . . . Retrieved Matter . | . . . . . . Retrieved Components . | . . . . . . Parts Scanalyzed . | . . . . . . Part Schematics Acquired . | . . . . . . Parts Damaged . | . . . . . . Bothacking | -11 -10 -9 -8 -8 -8 ------------ Run | Yrd Mat Mat Mat Sto Gar Used RIF Installer . | . . . . . . Robots Hacked . | . . . . . . Non-combat . | . . . . . . Combat . | . . . . . . Robot Hacks Applied . | . . . . . . Relay Couplers Released . | . . . . . . Fabnet Peak Effective % . | . . . . . . Robots Rewired . | . . . . . . Allies Hacked . | . . . . . . Hacks Repelled . | . . . . . . Allies | -11 -10 -9 -8 -8 -8 -------- Run | Yrd Mat Mat Mat Sto Gar Total Allies . | . . . . . . Largest Group . | . . . . . . Highest-Rated Group . | . . . . . . Highest-Rated Ally . | . . . . . . Total Orders . | . . . . . . Ally Attacks . | . . . . . . Total Damage . | . . . . . . Kills . | . . . . . . Allies Corrupted . | . . . . . . Allies Melted . | . . . . . . Intel | -11 -10 -9 -8 -8 -8 ------- Run | Yrd Mat Mat Mat Sto Gar Active Infowar (turns) 308 | . 160 129 19 . . Sensors 45 | . . 45 . . . Terrain 70 | . . 70 . . . ECM 263 | . 160 84 19 . . Robot Analysis Total . | . . . . . . Derelict Logs Recovered . | . . . . . . Drone Launches 21 | . . . . 17 4 Drone Recoveries 7 | . . . . 5 2 Exploration | -11 -10 -9 -8 -8 -8 ------------- Run | Yrd Mat Mat Mat Sto Gar Turns Passed 1639 | 95 240 246 724 91 243 Spaces Moved 1234 | 73 171 169 477 50 294 Core 272 | 5 6 5 . . 256 Treads 36 | 19 . 17 . . . Legs . | . . . . . . Wheels 240 | 49 165 26 . . . Hover . | . . . . . . Flight 686 | . . 121 477 50 38 Fastest Speed 34 | 50 80 37 34 34 34 Average Speed 55 | 105 90 67 36 37 51 Slowest Speed 200 | 160 200 160 114 114 100 Overloaded Moves . | . . . . . . Propulsion Burnouts . | . . . . . . Robots Hopped 20 | . . . 11 2 7 Potential Cave-ins . | . . . . . . Cave-ins Triggered . | . . . . . . Exploration Rate (%) 23 | 5 35 16 29 10 44 Regions Visited 5 Branch Regions 1 Pre-discovered Areas . | . . . . . . Known Exits Taken 4 | . 1 1 1 1 . Unknown Exits Taken 1 | 1 . . . . . Scrap Searched . | . . . . . . Spaces Dug . | . . . . . . Terrain Destroyed . | . . . . . . Melee . | . . . . . . Projectile . | . . . . . . AOE . | . . . . . . Terrain Rammed . | . . . . . . Walls Destroyed . | . . . . . . Machines Disabled . | . . . . . . Actions | -11 -10 -9 -8 -8 -8 --------- Run | Yrd Mat Mat Mat Sto Gar Total 2067 | 88 215 246 1017 121 380 Wait 586 | . 2 8 511 55 10 Move 1194 | 72 170 168 459 46 279 Hop 11 | . . . 6 1 4 Pick Up 23 | 1 9 2 7 1 3 Fast Attach 35 | 10 3 7 8 7 . Attach 19 | . 3 6 6 1 3 Detach 19 | 3 2 2 7 2 3 Swap 1 | . . 1 . . . Drop 31 | 2 4 2 10 8 5 Fire 72 | . 21 47 3 . 1 Melee 2 | . . . . . 2 Ram 1 | . 1 . . . . Kick . | . . . . . . Crush 3 | . . 3 . . . Escape Stasis 56 | . . . . . 56 Rewire 1 | . . . . . 1 Trap 13 | . . . . . 13 Miscellaneous . | . . . . . . Route ------- -11/Scrapyard -10/Materials (discovered 2 exits: *Mat x2) -9/Materials -8/Materials -8/Storage -8/Garrison (discovered 2 exits: *Rec x2) History --------- Turn | Location | Event 2 | -11/Scrapyard | Discovered new exit (range 16) 96 | -11/Scrapyard | Entered Materials 163 | -10/Materials | Discovered new exit (range 11) 265 | -10/Materials | Discovered new exit (range 15) 279 | -10/Materials | Identified exit to Materials 317 | -10/Materials | Build established: Mutant 336 | -10/Materials | Entered another Materials area 336 | -9/Materials | Evolved 2 slots: Utility x2 471 | -9/Materials | Core integrity fell below 50% 496 | -9/Materials | Lost 6 parts (1p2n1u2w) 577 | -9/Materials | Discovered new exit (range 16) 582 | -9/Materials | Identified exit to Materials 582 | -9/Materials | Entered another Materials area 582 | -8/Materials | Evolved 2 slots: Power x1, Propulsion x1 793 | -8/Materials | Build established: Scavenger-Mutant 1303 | -8/Materials | Discovered new exit (range 7) 1306 | -8/Materials | Identified exit to Storage 1306 | -8/Materials | Entered Storage 1397 | -8/Storage | Identified exit to Garrison 1397 | -8/Storage | Entered Garrison 1397 | -8/Garrison | Accompanied by 3 allies 1401 | -8/Garrison | Triggered checkpoint 1417 | -8/Garrison | Lost 7 allies 1491 | -8/Garrison | Discovered new exit (range 12) 1496 | -8/Garrison | Identified exit to Recycling 1497 | -8/Garrison | Attempted to access garrison exit controls, blocked by remote lockdown 1501 | -8/Garrison | Lost 4 allies 1533 | -8/Garrison | Triggered checkpoint 1596 | -8/Garrison | Lost 4 parts (1p2n1u) 1598 | -8/Garrison | Discovered exit to Recycling (range 10) 1602 | -8/Garrison | Attempted to access garrison exit controls, blocked by remote lockdown 1615 | -8/Garrison | Core integrity fell below 50% 1630 | -8/Garrison | Core integrity fell below 20% 1640 | -8/Garrison | Destroyed by Y-45 Defender with Beam Rifle Last Messages --------------- 01619_ Dropped Proton Bomb Trap. 01619_ Acquired Proton Bomb Trap. 01620_ Dropped Proton Bomb Trap. 01621_ Slug penetrates Storage Shell. 01621_ Installed Proton Bomb Trap. 01624_ P-60 Hacker triggered Proton Bomb Trap. 01624_ A bubble of electromagnetic force engulfs the area. 01626_ Slug penetrates Storage Shell. 01626_ Acquired Proton Bomb Trap. 01629_ Dropped Proton Bomb Trap. 01629_ Penetrated by Slug. 01629_ Installed Proton Bomb Trap. 01630_ Triggered Proton Bomb Trap. 01630_ A bubble of electromagnetic force engulfs the area. 01630_ Imp. Datajack destroyed. 01630_ Destroyed Imp. Datajack. 01630_ Storage Shell breached. 01632_ Slug penetrates Wall. Map ----- +----------------------------------------------------+ | ?????????????????????????????????????????????????? | | ?????????????????????????????????????????????????? | | ????????????????????????????################?????? | | ?????????????##############?# #?????? | | ?????????????# #?# > #?????? | | ???????????????""" #?# #?????? | | ???????????????" " ] ### ############?????? | | ???????????????" " " ## #????????????????? | | ?????????????? """" """ ## #????????????????? | | ?????????????# ## ######???????????? | | ?????????????# #???????????? | | ?????????????# """" """ #???????????? | | ??????????????????" " " ## ### #???????????? | | ??????????????????" " " ### #??? #???????????? | | ??????????????????" ""?" #?# #????#???????????? | | ?????????????????? ?? #?# #????????????????? | | ??????????????????####?####?# #????????????????? | | ????????????????????????????# #????????????????? | | ????????????????????????????# #????????????????? | | ????????????????????????????# #????????????????? | | ????????????????????????????# #????????????????? | | ????????????????????????????# #????????????????? | | ????????????????????????????# #????????????????? | | ????????????????????????????# #????????????????? | | # #???###################### #????????????????? | | #???# @ #????????????????? | | #???# Y #????????????????? | | ##???# Y #????????????????? | | ?##????# ######################????????????????? | | ???????# #?????????????????????????????????????? | | ???????# #?????????????????????????????????????? | | ???????# #?????????????????????????????????????? | | ???????# #?????????????????????????????????????? | | ???????# #?????????????????????????????????????? | | ???????# #?????????????????????????????????????? | | ##""""## #?????????????????????????????????????? | | #?????????????????????????????????????? | | #?????????????????????????????????????? | | #?????????????????????????????????????? | | ## ## #?????????????????????????????????????? | | ## ## #?????????????????????????????????????? | | "?????????????????????????????????????? | | "?????????????????????????????????????? | | "?????????????????????????????????????? | | "?????????????????????????????????????? | | ## ## #?????????????????????????????????????? | | ## ## #?????????????????????????????????????? | | ?????????????????????????????????????? | | ????????????????????????????????????? | | ????????????????????????????????????? | +----------------------------------------------------+ Best States ------------- Heat Dissipation 31 Coolant Potential 50 Energy Generation 10 Energy Capacity 125 Matter Stores 256 Matter Capacity 300 Sight Range 16 Robot Scan Range 14 Terrain Scan Range 14 Terrain Scan Density 10 ECM Strength 1 Additional Mass Support 9 Armor Coverage 375 Evasion (%) 63 Targeting Accuracy 8 Recoil Reduction 2 Item Schematics ----------------- None Robot Schematics ------------------ None Fabricated ------------ Nothing Repaired ---------- Nothing Alien Tech Used ----------------- None Achievements -------------- Cya! Challenges ------------ None Game ------ Seed GaussRefineryGun Manual? 0 Play Time 00:21:04 Cumulative 23.6 hours Start 2025.10.02 @ 13:25:52 End 2025.10.02 @ 13:49:20 Sessions 1 Manual Loads 0 Difficulty Rogue Special Mode None Game No. 80 Rogue 80 Adventurer 0 Explorer 0 Win Type - Total 0 Types 0/0/0/0/0/0/0/0/0/0 Lore% 10 Gallery% 26 Achievement% 24 Wizard Run 0 Options --------- Layout 1 ASCII 0 Keyboard 1 Movement Vi Keybinds 0 Fullscreen 1 Font 16/SmallcapsGlow Map View 55x38 Zoom Use 0% Tactical HUD 1 Map Filters NONE Filters NONE Steam 1 RUN: c5ce4ac9-4758-405a-9b6e-3eae1118be96